bitfinex/quotes_BTCUSD_20260315
["timestamp","ask_amount","ask_price","bid_price","bid_amount"]
[1773591620676,0.08624052,71414.0,71402.0,0.0002]
[1773591621395,0.0700133,71415.0,71403.0,0.0014]
[1773591621701,0.08624052,71414.0,71403.0,0.0014]
[1773591622280,0.07001526,71413.0,71403.0,0.0014]
[1773591623609,0.07001526,71413.0,71401.0,0.00010017]
[1773591623610,0.0014,71402.0,71401.0,0.00010017]
[1773591623835,0.07001526,71413.0,71401.0,0.00010017]
[1773591625058,0.07283744,71412.0,71395.0,0.0002]
[1773591625215,0.07283744,71410.0,71396.0,0.0014]
[1773591625651,0.07283744,71410.0,71392.0,0.07003544]
[1773591625652,0.07283744,71410.0,71393.0,0.0014]
[1773591626234,0.07283744,71410.0,71392.0,0.07003544]
[1773591626586,0.07001918,71409.0,71394.0,0.0014]
[1773591626763,0.07283744,71408.0,71395.0,0.0014]
[1773591627173,0.07283744,71408.0,71390.0,0.07003778]
[1773591627347,0.07273744,71408.0,71396.0,0.0014]
[1773591627753,0.07273744,71408.0,71397.0,0.0014]
[1773591628557,0.07002114,71407.0,71397.0,0.0014]
[1773591629446,0.07002114,71407.0,71392.0,0.07003522]
[1773591629447,0.14285858,71407.0,71392.0,0.07003522]
[1773591630048,0.07283744,71406.0,71392.0,0.07003522]
[1773591630673,0.07283744,71406.0,71393.0,0.0014]
[1773591633007,0.0700231,71405.0,71393.0,0.0014]
[1773591633244,0.07283744,71404.0,71386.0,0.0002]
[1773591634825,0.07283744,71404.0,71387.0,0.0014]
[1773591635021,0.07283744,71404.0,71388.0,0.0014]
[1773591635196,0.07002506,71403.0,71386.0,0.0002]
[1773591635403,0.07283744,71402.0,71387.0,0.0014]
[1773591635796,0.07283744,71402.0,71386.0,0.0002]
[1773591635986,0.07283744,71402.0,71387.0,0.0014]
[1773591636616,0.07283744,71402.0,71382.0,0.05906653]
[1773591636802,0.07283744,71402.0,71384.0,0.07004344]
[1773591637424,0.07002703,71401.0,71382.0,0.05906653]
[1773591637606,0.07283744,71400.0,71382.0,0.05906653]
[1773591638004,0.07283744,71400.0,71383.0,0.0014]
[1773591639836,0.07002899,71399.0,71384.0,0.0014]
[1773591643208,0.07002899,71399.0,71385.0,0.07004272]
[1773591648599,0.07305745,71418.0,71390.0,0.07905036]
[1773591648807,0.07001722,71411.0,71400.0,0.05880519]
[1773591649477,0.07001722,71411.0,71401.0,0.0014]
[1773591650828,0.07001722,71412.0,71401.0,0.0014]
[1773591653722,0.00022001,71411.0,71401.0,0.0014]
[1773591653918,0.00022001,71411.0,71221.0,0.83077071]
[1773591653919,0.0711193,71410.0,71386.0,0.07024171]
[1773591654824,0.0711193,71409.0,71386.0,0.0002]
[1773591655029,0.0711193,71409.0,71386.0,0.07024143]
[1773591655256,0.0711193,71406.0,71387.0,0.0014]
[1773591655379,0.0711193,71406.0,71386.0,0.07024143]
[1773591655925,0.0711193,71406.0,71387.0,0.0014]
[1773591656127,0.0711193,71406.0,71386.0,0.0002]
[1773591656332,0.0711193,71406.0,71388.0,0.0014]
[1773591658304,0.0711193,71404.0,71388.0,0.0014]
[1773591660787,0.07002506,71403.0,71388.0,0.0014]
[1773591660956,0.14114436,71403.0,71388.0,0.0014]
[1773591661163,0.07002506,71403.0,71388.0,0.0014]
[1773591661361,0.0711193,71402.0,71388.0,0.0014]
[1773591661564,0.0711193,71402.0,71388.0,0.0016]
[1773591663828,0.14114633,71401.0,71388.0,0.0016]
[1773591663989,0.0711193,71400.0,71380.0,0.00025]
[1773591664192,0.07002703,71401.0,71380.0,0.00025]
[1773591664193,0.0711193,71391.0,71380.0,0.00025]
[1773591664424,0.0709394,71391.0,71380.0,0.00025]
[1773591664629,0.0709394,71391.0,71380.0,0.0002]
[1773591665275,0.0709394,71391.0,71382.0,0.0014]
[1773591666332,0.0711193,71389.0,71380.0,0.0016]
[1773591667427,0.0711193,71389.0,71381.0,0.00030716]
[1773591667769,0.0711193,71389.0,71379.0,0.0002]
[1773591667976,0.0711193,71389.0,71379.0,0.00030686]
[1773591667977,0.00017987,71388.0,71379.0,0.00030686]
[1773591668224,0.07093943,71389.0,71371.0,0.0002]
[1773591668391,0.07093943,71389.0,71366.0,1e-08]
[1773591668392,0.0711193,71379.0,71366.0,1e-08]
[1773591668689,0.0711193,71379.0,71365.0,1e-08]
[1773591669098,0.0711193,71377.0,71365.0,1e-08]
[1773591669255,0.0711193,71374.0,71365.0,1e-08]
[1773591670265,0.0700545,71373.0,71365.0,1e-08]
[1773591670669,0.0711193,71372.0,71355.0,5e-05]
[1773591671009,0.0711193,71369.0,71355.0,0.00040627]
[1773591671568,0.0711193,71369.0,71355.0,0.00035627]
[1773591671899,0.0711193,71369.0,71355.0,0.00175627]
[1773591672064,0.0711193,71369.0,71355.0,0.00035627]
[1773591672262,0.06987948,71368.0,71356.0,0.0014]
[1773591672489,0.06987948,71368.0,71355.0,0.00035627]
[1773591673199,0.06987948,71368.0,71356.0,0.0014]
[1773591673360,0.0711193,71367.0,71356.0,0.0014]
[1773591673579,0.0711193,71367.0,71355.0,0.00035627]
[1773591673799,0.0711193,71367.0,71352.0,0.0002269]
[1773591673800,0.0711193,71365.0,71353.0,0.0014]
[1773591673978,0.05880519,71363.0,71353.0,0.0014]
[1773591674427,0.0700653,71362.0,71353.0,0.0014]
[1773591674830,0.0700653,71362.0,71352.0,0.0002269]
[1773591675649,0.0700653,71362.0,71353.0,0.0014]
[1773591677752,0.06524114,71361.0,71340.0,0.07036351]
[1773591677932,0.0700653,71362.0,71338.0,0.07620749]
[1773591677933,0.05880519,71350.0,71338.0,0.07620749]
[1773591678263,0.00017994,71349.0,71334.0,0.07620749]
[1773591678498,0.00017994,71349.0,71335.0,0.07620749]
[1773591678896,0.00017994,71349.0,71336.0,0.0014]
[1773591679174,0.00017994,71349.0,71345.0,0.0001]
[1773591679890,0.20000255,71350.0,71349.0,0.00017989]
[1773591680086,0.14119736,71350.0,71349.0,0.00017989]
[1773591680286,0.1410174,71350.0,71345.0,0.0001]
[1773591680494,0.002,71349.0,71345.0,0.0001]
[1773591680899,0.001,71349.0,71345.0,0.0001]
[1773591681502,0.14183744,71350.0,71345.0,0.0001]
[1773591682350,0.14083744,71350.0,71345.0,0.0001]
[1773591682552,0.07148589,71349.0,71337.0,0.0014]
[1773591682789,0.0589215,71347.0,71337.0,0.00095]
[1773591682986,0.0589215,71347.0,71337.0,0.0014]
[1773591683189,0.0589215,71347.0,71334.0,0.0014]
[1773591683401,0.06971814,71350.0,71325.0,5e-05]
[1773591683402,0.0589215,71344.0,71325.0,5e-05]
[1773591683576,0.0589215,71340.0,71327.0,0.01264]
[1773591683776,0.0589215,71340.0,71328.0,0.0014]
[1773591683975,0.07008789,71339.0,71328.0,0.0014]
[1773591684173,0.07148589,71338.0,71319.0,0.02915382]
[1773591684378,0.0589215,71332.0,71320.0,0.07020641]
[1773591684806,0.07148589,71335.0,71320.0,0.00011509]
[1773591685006,0.0589215,71330.0,71320.0,0.00011509]
[1773591685205,0.07008789,71341.0,71320.0,0.00011509]
[1773591685206,0.07007891,71349.0,71321.0,0.06920174]
[1773591685539,0.07148589,71348.0,71321.0,0.06920174]
[1773591685951,0.07148589,71346.0,71321.0,0.06920174]
[1773591686220,0.00017987,71345.0,71323.0,0.06920174]
[1773591688107,0.0589215,71360.0,71333.0,0.0668156]
[1773591688311,0.07148589,71359.0,71335.0,0.0668156]
[1773591689117,0.07148589,71359.0,71336.0,0.0014]
[1773591689522,0.07148589,71359.0,71335.0,0.0668156]
[1773591689730,0.07148589,71359.0,71336.0,0.0014]
[1773591690076,0.07148589,71359.0,71335.0,0.0668156]
[1773591690283,0.07148589,71357.0,71338.0,0.07008887]
[1773591690696,0.07148589,71357.0,71339.0,0.0014]
[1773591691120,0.07148589,71349.0,71333.0,0.07009349]
[1773591691530,0.07148589,71349.0,71334.0,0.0014]
[1773591691731,0.07148589,71349.0,71333.0,0.07009349]
[1773591691933,0.0014,71354.0,71335.0,0.0014]
[1773591692110,0.07148589,71353.0,71335.0,0.0014]
[1773591692534,0.07148589,71351.0,71335.0,0.07149103]
[1773591693557,0.07148589,71351.0,71339.0,0.0002]
[1773591694634,0.07007708,71350.0,71339.0,0.0002]
[1773591695654,0.0014,71354.0,71339.0,0.0002]
[1773591695655,0.00022001,71365.0,71342.0,0.01411712]
[1773591695850,0.07028298,71365.0,71343.0,0.06834877]
[1773591696629,0.07028298,71365.0,71345.0,0.06690153]
[1773591696836,0.0706402,71365.0,71345.0,0.06690153]
[1773591697044,0.00057723,71365.0,71345.0,0.06690153]
[1773591698848,0.07063996,71365.0,71347.0,0.06920174]
[1773591699528,0.07005713,71371.0,71347.0,0.06920174]
[1773591699726,0.07005736,71371.0,71347.0,0.06955896]
[1773591700746,0.07148589,71370.0,71347.0,0.06955896]
[1773591700946,0.07005842,71369.0,71348.0,0.07007904]
[1773591701131,0.07005842,71369.0,71349.0,0.07060174]
[1773591701741,0.00022001,71365.0,71349.0,0.07060174]
[1773591702105,0.07148589,71364.0,71348.0,0.0014]
[1773591703033,0.07006431,71363.0,71349.0,0.07007806]
[1773591706373,0.1415502,71363.0,71349.0,0.07007806]
[1773591708934,0.07148589,71362.0,71350.0,0.0014]
[1773591709542,0.07148589,71362.0,71351.0,0.0014]
[1773591709935,0.07148589,71362.0,71348.0,0.07007904]
[1773591710136,0.07148589,71362.0,71349.0,0.0014]
[1773591711260,0.07006628,71361.0,71349.0,0.14067889]
[1773591713592,0.07031982,71378.0,71350.0,0.17670229]
[1773591713793,0.07031982,71378.0,71351.0,0.00826851]
[1773591714124,0.07003242,71377.0,71351.0,0.00826851]
[1773591714952,0.07003242,71377.0,71360.0,0.05885981]
[1773591715152,0.07003242,71377.0,71361.0,0.0014]
[1773591715354,0.07031982,71378.0,71362.0,0.01060516]
[1773591715561,0.07031982,71378.0,71363.0,0.07006431]
[1773591715744,0.07031982,71378.0,71364.0,0.01060516]
[1773591717278,0.07031982,71378.0,71363.0,0.07006431]
[1773591718453,0.07031982,71378.0,71362.0,0.07006431]
[1773591718785,0.07003242,71377.0,71362.0,0.07006431]
[1773591719979,0.07003242,71375.0,71363.0,0.0014]
[1773591720179,0.07003242,71375.0,71364.0,0.001]
[1773591724048,0.07005352,71374.0,71364.0,0.001]
[1773591724300,0.07003242,71373.0,71364.0,0.001]
[1773591727557,0.1400879,71372.0,71364.0,0.001]
[1773591729127,0.07005548,71372.0,71364.0,0.001]
[1773591729327,0.07003242,71371.0,71364.0,0.001]
[1773591729956,0.07005744,71370.0,71364.0,0.0014]
[1773591730137,0.07003242,71369.0,71364.0,0.0014]
[1773591731561,0.07003242,71369.0,71362.0,0.0014]
[1773591731768,0.14009105,71369.0,71362.0,0.0014]
[1773591733085,0.07003242,71371.0,71351.0,0.0700761]
[1773591733286,0.07005744,71372.0,71353.0,0.01353724]
[1773591735152,0.07005744,71372.0,71354.0,0.07147315]
[1773591735568,0.07005744,71372.0,71355.0,0.01338539]
[1773591736190,0.07005744,71372.0,71362.0,0.0002]
[1773591736425,0.07005744,71372.0,71363.0,0.0014]
[1773591739204,0.07005744,71372.0,71363.0,0.07146333]
[1773591745489,0.07005744,71372.0,71363.0,0.07166333]
[1773591747920,0.00022001,71373.0,71363.0,0.07166333]
[1773591748093,0.00027001,71378.0,71364.0,0.00154134]
[1773591748273,0.00022001,71380.0,71368.0,0.05886525]
[1773591748475,0.07026792,71380.0,71369.0,0.0014]
[1773591749713,0.07026792,71380.0,71370.0,0.05886525]
[1773591749918,0.07026792,71380.0,71371.0,0.07005646]
[1773591750288,0.00798516,71384.0,71372.0,0.03714448]
[1773591750488,0.07033566,71390.0,71374.0,0.05886525]
[1773591750729,0.0002978,71390.0,71375.0,0.03854448]
[1773591751906,0.0002978,71390.0,71376.0,0.07005155]
[1773591752937,0.07003892,71389.0,71376.0,0.07005155]
[1773591756762,0.07025997,71388.0,71376.0,0.07005155]
[1773591759500,0.00022001,71388.0,71376.0,0.07005155]
[1773591759910,0.00022001,71388.0,71376.0,0.1289168]
[1773591763539,0.07026073,71388.0,71376.0,0.1289168]
[1773591763905,0.07026073,71388.0,71376.0,0.07005155]
[1773591768429,0.07026073,71388.0,71376.0,0.07025155]
[1773591769597,0.00022001,71388.0,71376.0,0.07025155]
[1773591775453,0.00022001,71388.0,71376.0,0.1291168]
[1773591778529,0.06900133,71386.0,71376.0,0.07025155]
[1773591778728,0.06878132,71385.0,71376.0,0.07025155]
[1773591781811,0.00022001,71386.0,71376.0,0.07025155]
[1773591786906,0.00022001,71386.0,71376.0,0.1291168]
[1773591789886,0.00022001,71386.0,71376.0,0.07025155]
[1773591796754,0.00022001,71386.0,71376.0,0.1291168]
[1773591798945,0.00022001,71386.0,71376.0,0.07025155]
[1773591800835,0.00046091,71386.0,71376.0,0.07025155]
[1773591807541,0.07008971,71390.0,71376.0,0.07025155]
[1773591807542,5e-05,71396.0,71377.0,0.06602079]
[1773591807852,5e-05,71398.0,71381.0,0.06602079]
[1773591808070,5e-05,71398.0,71383.0,0.06602079]
[1773591808470,5e-05,71398.0,71384.0,0.0700437]
[1773591808788,5e-05,71398.0,71385.0,0.06602079]
[1773591811280,5e-05,71398.0,71386.0,0.07004174]
[1773591811589,5e-05,71398.0,71388.0,0.05883549]
[1773591811737,5e-05,71398.0,71389.0,0.0014]
[1773591815410,5e-05,71398.0,71390.0,0.07003782]
[1773591816018,0.00027001,71398.0,71390.0,0.07003782]
[1773591821532,0.00027001,71398.0,71378.0,0.07004902]
[1773591821533,0.06600262,71395.0,71378.0,0.07004902]
[1773591821735,0.06600262,71389.0,71377.0,0.07005057]
[1773591821956,0.07003978,71388.0,71377.0,0.07005057]
[1773591822106,0.06600262,71387.0,71377.0,0.07005057]
[1773591822680,0.06600262,71387.0,71378.0,0.0014]
[1773591822963,0.06600262,71387.0,71378.0,0.07144902]
[1773591823822,0.06600262,71387.0,71379.0,0.0014]
[1773591827995,0.06600262,71386.0,71379.0,0.02104095]
[1773591828807,0.06600262,71386.0,71379.0,0.02124095]
[1773591829187,0.06600262,71386.0,71380.0,0.0014]
[1773591831907,0.06600262,71386.0,71376.0,0.0002]
[1773591832109,0.06600262,71386.0,71372.0,0.07005481]
[1773591832110,0.06600262,71386.0,71372.0,0.07005501]
[1773591832312,0.06600262,71386.0,71371.0,0.07025636]
[1773591833421,0.06707407,71380.0,71371.0,0.0002]
[1773591833560,0.06707407,71380.0,71372.0,0.0014]
[1773591833761,0.06707407,71380.0,71366.0,0.07006086]
[1773591833988,0.06707407,71380.0,71367.0,0.0014]
[1773591834241,0.06707407,71380.0,71364.0,0.07026236]
[1773591835213,0.06707407,71380.0,71364.0,0.07057326]
[1773591835595,0.06707407,71378.0,71364.0,0.0005109]
[1773591835798,0.06707407,71378.0,71365.0,0.0014]
[1773591836220,0.06707407,71378.0,71366.0,0.0014]
[1773591836600,0.06707407,71378.0,71367.0,0.0002]
[1773591836806,0.06707407,71378.0,71368.0,0.0014]
[1773591837176,0.06707407,71378.0,71368.0,9.11e-05]
[1773591837378,0.06707407,71378.0,71369.0,0.0014]
[1773591837815,0.06707407,71376.0,71370.0,0.0014]
[1773591838020,0.06707407,71376.0,71370.0,0.0014911]
[1773591838219,0.06707407,71376.0,71370.0,9.11e-05]
[1773591838461,0.06707407,71376.0,71371.0,0.0014]
[1773591838832,0.06707407,71376.0,71370.0,0.0014911]
[1773591839337,0.06707407,71376.0,71370.0,9.11e-05]
[1773591839559,0.06707407,71376.0,71370.0,0.0014911]
[1773591839764,0.06707407,71376.0,71370.0,9.11e-05]
[1773591839963,0.06707407,71374.0,71370.0,0.0014911]
[1773591840140,0.06707407,71374.0,71367.0,0.0002]
[1773591841548,0.06707407,71374.0,71368.0,0.0014]
[1773591841746,0.06707407,71374.0,71369.0,0.0014]
[1773591841948,0.0700545,71373.0,71367.0,0.0002]
[1773591842554,0.0700545,71373.0,71365.0,0.0002198]
[1773591843469,0.0700545,71373.0,71366.0,0.0014]
[1773591844281,0.0700545,71376.0,71366.0,0.0014]
[1773591844518,0.06707407,71375.0,71364.0,0.0002]
[1773591845191,0.06707407,71375.0,71367.0,0.0002]
[1773591845353,0.06707407,71375.0,71364.0,0.0002]
[1773591845769,0.06707407,71373.0,71364.0,0.0002]
[1773591846335,0.06707407,71371.0,71361.0,0.0002]
[1773591846536,0.06707407,71371.0,71314.0,0.12103656]
[1773591846537,0.05883549,71370.0,71357.0,0.07006965]
[1773591846738,0.05883549,71370.0,71357.0,0.07042687]
[1773591847538,0.05883549,71370.0,71357.0,0.00035722]
[1773591847768,0.06707407,71369.0,71348.0,0.07027866]
[1773591847967,0.06707407,71367.0,71352.0,0.07027434]
[1773591848165,0.06707407,71367.0,71352.0,0.0002]
[1773591848327,0.07006137,71366.0,71354.0,0.0014]
[1773591849051,0.05883549,71364.0,71352.0,0.0002]
[1773591849232,0.06707407,71365.0,71352.0,0.0002]
[1773591849634,0.06707407,71362.0,71348.0,0.0002]
[1773591850371,0.07006628,71361.0,71348.0,0.0002]
[1773591850965,0.07006628,71361.0,71349.0,0.0014]
[1773591851363,0.07006628,71361.0,71339.0,0.07008761]
[1773591851364,0.06707407,71358.0,71339.0,0.07008761]
[1773591851561,0.12572959,71353.0,71342.0,0.0014]
[1773591851762,0.1255496,71353.0,71342.0,0.0014]
[1773591852491,0.07007512,71352.0,71346.0,0.0002]
[1773591852755,0.0014,71361.0,71346.0,0.0002]
[1773591852756,0.07006384,71364.0,71347.0,0.06808701]
[1773591852956,0.0700653,71362.0,71347.0,0.06808701]
[1773591853096,0.05883549,71360.0,71347.0,0.06808701]
[1773591854055,0.05883549,71360.0,71348.0,0.0014]
[1773591854823,0.07006824,71359.0,71348.0,0.0014]
[1773591856399,0.07006824,71359.0,71349.0,0.06808701]
[1773591856639,0.07006824,71360.0,71349.0,0.06808701]
[1773591856834,0.0700596,71368.0,71350.0,0.07007708]
[1773591857035,0.0700596,71368.0,71350.0,0.13816409]
[1773591857236,0.13713367,71368.0,71350.0,0.13816409]
[1773591857579,0.13713367,71368.0,71350.0,0.07007708]
[1773591857783,0.13713367,71368.0,71350.0,0.13816409]
[1773591860751,0.13713367,71368.0,71350.0,0.07007708]
[1773591861090,0.13713367,71368.0,71351.0,0.06808701]
[1773591861592,0.13713367,71368.0,71352.0,0.06808701]
[1773591861593,0.0700596,71368.0,71352.0,0.06808701]
[1773591863801,0.0698796,71368.0,71352.0,0.06808701]
[1773591863963,0.0691596,71368.0,71352.0,0.06808701]
[1773591865567,0.0691596,71368.0,71353.0,0.06134253]
[1773591865784,0.0691596,71368.0,71354.0,0.06274253]
[1773591869050,0.06648585,71367.0,71354.0,0.0014]
[1773591869242,0.0014,71354.0,71352.0,0.0002]
[1773591869450,0.06648585,71364.0,71352.0,0.0002]
[1773591870442,0.06648585,71364.0,71353.0,0.0014]
[1773591871564,0.13564545,71368.0,71353.0,0.0014]
[1773591871733,0.06648585,71367.0,71353.0,0.0014]
[1773591871939,0.0014,71353.0,71352.0,0.0002]
[1773591872157,0.06648585,71367.0,71352.0,0.0002]
[1773591873195,0.0014,71353.0,71352.0,0.0002]
[1773591874426,0.00121998,71353.0,71352.0,0.0002]
[1773591874682,0.07006752,71360.0,71352.0,0.13301765]
[1773591874857,0.07006431,71363.0,71352.0,0.13301765]
[1773591875649,0.07006431,71363.0,71352.0,0.1190088]
[1773591875801,0.06937961,71368.0,71352.0,0.11629037]
[1773591877553,0.20873996,71368.0,71352.0,0.11629037]
[1773591878142,0.20873996,71368.0,71352.0,0.11615028]
[1773591879211,0.20855993,71368.0,71352.0,0.11615028]
[1773591880458,0.20855993,71368.0,71352.0,0.05480775]
[1773591880662,0.06901957,71368.0,71353.0,0.04533402]
[1773591880937,0.06901957,71368.0,71352.0,0.07007512]
[1773591881405,0.06648585,71367.0,71351.0,0.07007512]
[1773591882280,0.07006137,71366.0,71353.0,0.0014]
[1773591882494,0.07006137,71366.0,71353.0,0.07147411]
[1773591883272,0.07006137,71366.0,71353.0,0.06714655]
[1773591883477,0.07006137,71366.0,71353.0,0.05543551]
[1773591884858,0.07006137,71366.0,71354.0,0.0014]
[1773591885090,0.07006137,71366.0,71353.0,0.05543551]
[1773591886640,0.07006137,71366.0,71354.0,0.0014]
[1773591887073,0.07006137,71366.0,71354.0,0.07147314]
[1773591887216,0.07006137,71366.0,71354.0,0.07007314]
[1773591887790,0.06988133,71366.0,71354.0,0.07007314]
[1773591889042,0.00022001,71368.0,71355.0,0.07147122]
[1773591889194,0.07027942,71368.0,71356.0,0.06134253]
[1773591892246,0.07027942,71368.0,71357.0,0.07007021]
[1773591893348,0.07027942,71368.0,71358.0,0.06041492]
[1773591893553,0.00022001,71368.0,71358.0,0.06041492]
[1773591893713,0.07005556,71372.0,71358.0,0.06041492]
[1773591893911,0.02710749,71374.0,71358.0,0.06077236]
[1773591894341,0.02710749,71374.0,71360.0,0.06041492]
[1773591895045,0.02710749,71374.0,71361.0,0.0014]
[1773591896462,0.02710749,71374.0,71362.0,0.0700653]
[1773591897666,0.0273275,71374.0,71362.0,0.0700653]
[1773591901627,0.0773275,71374.0,71362.0,0.0700653]
[1773591902843,0.07005399,71374.0,71362.0,0.0700653]
[1773591904739,0.0640668,71373.0,71362.0,0.0700653]
[1773591904932,0.13412228,71372.0,71362.0,0.0700653]
[1773591909611,0.07005548,71372.0,71361.0,0.0014]
[1773591909844,0.0640668,71371.0,71354.0,0.0002]
[1773591909968,0.13939567,71371.0,71349.0,0.0002]
[1773591910168,0.0640668,71362.0,71349.0,0.07027787]
[1773591911045,0.0640668,71362.0,71350.0,0.0014]
[1773591911568,0.0640668,71360.0,71354.0,0.0002]
[1773591912218,0.0640668,71360.0,71353.0,0.0014]
[1773591912371,0.0640668,71360.0,71348.0,0.07007904]
[1773591913734,0.0640668,71360.0,71349.0,0.0014]
[1773591914133,0.07006824,71359.0,71350.0,0.07007708]
[1773591916263,0.13413504,71359.0,71349.0,0.07147794]
[1773591916725,0.0640668,71358.0,71346.0,0.0002]
[1773591918871,0.10090616,71366.0,71347.0,0.07008003]
[1773591919032,0.07006235,71365.0,71348.0,0.06041492]
[1773591919231,0.0640668,71364.0,71348.0,0.06041492]
[1773591919450,0.0640668,71359.0,71347.0,0.07008003]
[1773591919794,0.07006235,71365.0,71347.0,0.13049495]
[1773591919990,0.07006235,71365.0,71348.0,0.06041492]
[1773591920373,0.0640668,71364.0,71347.0,0.07008003]
[1773591921101,0.0640668,71359.0,71346.0,0.0002]
[1773591921694,0.0640668,71359.0,71343.0,0.07008321]
[1773591921695,0.0640668,71355.0,71341.0,0.0002]
[1773591921855,0.0640668,71355.0,71342.0,0.07033745]
[1773591922965,0.0640668,71355.0,71343.0,0.0014]
[1773591923198,0.07007315,71354.0,71343.0,0.0014]
[1773591923396,0.13243703,71354.0,71343.0,0.07148383]
[1773591923769,0.07007315,71354.0,71343.0,0.07148383]
[1773591924881,0.07007315,71354.0,71346.0,0.0002]
[1773591925196,0.06236388,71353.0,71342.0,0.0002526]
[1773591925393,0.07007512,71352.0,71342.0,0.0002526]
[1773591925763,0.06236388,71351.0,71342.0,0.0002526]
[1773591925979,0.07007512,71352.0,71342.0,0.07033748]
[1773591926633,0.06236388,71351.0,71343.0,0.0014]
[1773591927007,0.07007512,71353.0,71342.0,0.07033684]
[1773591927178,0.07007512,71353.0,71343.0,0.0014]
[1773591927376,0.06236388,71358.0,71343.0,0.0014]
[1773591928910,0.06236388,71358.0,71343.0,0.07148392]
[1773591929109,0.06236388,71358.0,71343.0,0.0014]
[1773591929313,0.07007021,71357.0,71343.0,0.0014]
[1773591929508,0.06236388,71356.0,71343.0,0.07148381]
[1773591929709,0.06236388,71352.0,71343.0,0.0014]
[1773591930036,0.06236388,71352.0,71343.0,0.00146509]
[1773591930202,0.06236388,71352.0,71344.0,0.0014]
[1773591930720,0.06236388,71352.0,71345.0,0.0014]
[1773591931103,0.06236388,71352.0,71343.0,6.509e-05]
[1773591931439,0.06236388,71352.0,71336.0,0.07009079]
[1773591931440,0.06236388,71350.0,71336.0,0.07009079]
[1773591931586,0.06236388,71350.0,71336.0,0.00010717]
[1773591932847,0.06236388,71350.0,71337.0,0.0014]
[1773591933389,0.07007806,71349.0,71338.0,0.0014]
[1773591933666,0.06236388,71348.0,71338.0,0.0014]
[1773591933876,0.06236388,71348.0,71339.0,0.0014]
[1773591934216,0.06236388,71348.0,71336.0,0.00010717]
[1773591934417,0.06236388,71348.0,71337.0,0.0014]
[1773591934616,0.06236388,71348.0,71336.0,0.00010717]
[1773591935338,0.06236388,71348.0,71331.0,0.0002]
[1773591935339,0.07008297,71344.0,71309.0,0.07011737]
[1773591935535,0.07008297,71344.0,71310.0,0.00010735]
[1773591935536,0.06236388,71329.0,71310.0,0.00010735]
[1773591935766,0.0014,71328.0,71310.0,0.06238859]
[1773591936554,0.06376388,71328.0,71311.0,0.0014]
[1773591937110,0.06376388,71328.0,71311.0,0.0014896]
[1773591938051,0.07009968,71327.0,71313.0,0.06228124]
[1773591938254,0.0014,71326.0,71313.0,0.06228124]
[1773591938705,0.0014,71326.0,71312.0,0.07011442]
[1773591939110,0.0014,71326.0,71312.0,0.07020402]
[1773591940096,0.07010164,71325.0,71312.0,0.07020402]
[1773591940302,0.07010164,71325.0,71312.0,0.13248526]
[1773591941334,0.07010164,71325.0,71312.0,0.07020402]
[1773591942895,0.13245275,71338.0,71315.0,0.06228124]
[1773591943097,0.0014,71337.0,71315.0,0.06228124]
[1773591943760,0.07008887,71338.0,71315.0,0.06228124]
[1773591944142,0.07008887,71338.0,71315.0,0.06328124]
[1773591944352,0.07008887,71338.0,71315.0,0.06228124]
[1773591944764,0.07008887,71338.0,71317.0,0.06228124]
[1773591944963,0.07008887,71338.0,71319.0,0.06228124]
[1773591947702,0.07008887,71338.0,71320.0,0.07010656]
[1773591947867,0.07008887,71338.0,71321.0,0.06228124]
[1773591949772,0.06236388,71337.0,71319.0,0.070107]
[1773591950213,0.06218383,71337.0,71319.0,0.070107]
[1773591950424,0.06218383,71337.0,71320.0,0.0014]
[1773591953303,0.0614526,71335.0,71321.0,0.07010557]
[1773591954536,0.0589009,71331.0,71320.0,0.0014]
[1773591954675,0.0614526,71331.0,71320.0,0.0014]
[1773591954876,0.0614526,71331.0,71320.0,0.07150627]
[1773591955076,0.07009083,71337.0,71320.0,0.0014]
[1773591955279,0.0614526,71336.0,71321.0,0.0014]
[1773591955789,0.0614526,71336.0,71318.0,0.07010852]
[1773591956407,0.0614526,71336.0,71319.0,0.0014]
[1773591956603,0.0614526,71336.0,71319.0,0.0016]
[1773591956832,0.0614526,71336.0,71320.0,0.0014]
[1773591957417,0.13154442,71335.0,71321.0,0.0014]
[1773591957825,0.13154442,71335.0,71319.0,0.07030735]
[1773591957826,0.0614526,71334.0,71319.0,0.0002]
[1773591958128,0.0614526,71334.0,71322.0,0.0014]
[1773591958322,0.0614526,71334.0,71319.0,0.07030754]
[1773591958532,0.0614526,71334.0,71322.0,0.0014]
[1773591958961,0.0628526,71334.0,71321.0,0.0014]
[1773591959168,0.0628526,71334.0,71319.0,0.07170754]
[1773591959376,0.0628526,71334.0,71319.0,0.0016]
[1773591959694,0.07009378,71333.0,71319.0,0.0016]
[1773591960095,0.07009378,71333.0,71320.0,0.0014]
[1773591961150,0.0614526,71329.0,71319.0,0.0002]
[1773591961546,0.07009378,71333.0,71319.0,0.0002]
[1773591961753,0.07009148,71336.0,71321.0,0.0605055]
[1773591961953,0.07008985,71337.0,71321.0,0.0605055]
[1773591963704,0.032426,71345.0,71328.0,0.0605055]
[1773591963956,0.04512195,71345.0,71330.0,0.0605055]
[1773591964935,0.04512195,71345.0,71329.0,0.0014]
[1773591965303,0.0614526,71344.0,71329.0,0.0014]
[1773591965809,0.00022001,71338.0,71330.0,0.07009673]
[1773591969134,0.00022001,71338.0,71331.0,0.0605055]
[1773591971337,0.00022001,71338.0,71332.0,0.07009476]
[1773591972592,0.00022001,71338.0,71332.0,0.07020211]
[1773591973644,0.00022001,71338.0,71332.0,0.00010735]
[1773591980813,0.07008405,71343.0,71332.0,0.00010735]
[1773591980936,0.07007807,71349.0,71333.0,0.0605055]
[1773591981139,0.0700802,71347.0,71333.0,0.0605055]
[1773591982298,0.07007913,71348.0,71333.0,0.0605055]
[1773591982509,0.07007913,71348.0,71333.0,0.0615055]
[1773591982866,0.07007807,71349.0,71334.0,0.0700928]
[1773591983064,0.0616818,71356.0,71334.0,0.0700928]
[1773591983065,0.0002292,71356.0,71337.0,0.05592431]
[1773591983288,0.07030106,71356.0,71342.0,0.05592431]
[1773591983493,0.07030106,71356.0,71343.0,0.0014]
[1773591984058,0.07030106,71356.0,71343.0,0.05732431]
[1773591984258,0.00022001,71358.0,71343.0,0.05732431]
[1773591984925,0.00022001,71358.0,71344.0,0.07008297]
[1773591985136,3.996e-05,71358.0,71345.0,0.05592431]
[1773591986484,3.996e-05,71358.0,71345.0,0.05692431]
[1773591987067,3.996e-05,71358.0,71346.0,0.07008101]
[1773591987259,0.00012991,71361.0,71347.0,0.05592431]
[1773591987798,0.07019633,71361.0,71347.0,0.05592431]
[1773591988343,0.00012991,71361.0,71347.0,0.05592431]
[1773591988892,0.07019623,71361.0,71347.0,0.05592431]
[1773591989719,0.00012991,71361.0,71348.0,0.07007904]
[1773591990337,0.00012991,71361.0,71349.0,0.0014]